[Event "Titled Tuesday Blitz July 05 Late 2022"]
[White "Guz, Ari"]
[Black "Manukian, Artak"]
[WhiteFideId "2825759"]
[BlackFideId "13301373"]
[WhiteElo "1913"]
[BlackElo "2430"]
[Result "0-1"]
[Round "05"]
[TimeControl "180+1"]
[Date "2022.07.06"]
[WhiteClock "0:00:19"]
[BlackClock "0:00:06"]

1. e4 {[%clk 0:03:00]}  c6 {[%clk 0:02:58]} 2. Nf3 {[%clk 0:03:00]}  d5 {[%clk 0:02:58]} 3. Nc3 {[%clk 0:03:00]}  dxe4 {[%clk 0:02:59]} 4. Nxe4 {[%clk 0:03:00]}  Nf6 {[%clk 0:02:59]} 5. Qe2 {[%clk 0:03:00]}  Nxe4 {[%clk 0:02:59]} 6. Qxe4 {[%clk 0:03:01]}  Nd7 {[%clk 0:03:00]} 7. Bc4 {[%clk 0:03:02]}  Nf6 {[%clk 0:03:00]} 8. Ne5 {[%clk 0:03:02]}  e6 {[%clk 0:03:01]} 9. Qe2 {[%clk 0:03:03]}  b5 {[%clk 0:02:49]} 10. Bd3 {[%clk 0:03:03]}  Bb7 {[%clk 0:02:45]} 11. b3 {[%clk 0:02:59]}  Qd4 {[%clk 0:02:39]} 12. c3 {[%clk 0:02:51]}  Qd6 {[%clk 0:02:15]} 13. Bb2 {[%clk 0:02:48]}  Be7 {[%clk 0:02:14]} 14. c4 {[%clk 0:02:40]}  O-O {[%clk 0:02:12]} 15. O-O {[%clk 0:02:36]}  a6 {[%clk 0:02:07]} 16. Bc2 {[%clk 0:02:29]}  c5 {[%clk 0:02:04]} 17. cxb5 {[%clk 0:02:24]}  axb5 {[%clk 0:02:04]} 18. Qxb5 {[%clk 0:02:24]}  Ba6 {[%clk 0:01:59]} 19. Qa4 {[%clk 0:02:07]}  Bxf1 {[%clk 0:01:57]} 20. Qh4 {[%clk 0:02:08]}  Qxd2 {[%clk 0:01:44]} 21. Rc1 {[%clk 0:01:56]}  Rad8 {[%clk 0:01:12]} 22. Nf3 {[%clk 0:01:49]}  Qh6 {[%clk 0:01:03]} 23. Qxh6 {[%clk 0:01:49]}  gxh6 {[%clk 0:01:04]} 24. Kxf1 {[%clk 0:01:50]}  Nd5 {[%clk 0:00:57]} 25. Be4 {[%clk 0:01:34]}  Nb4 {[%clk 0:00:55]} 26. Ne5 {[%clk 0:01:29]}  Bf6 {[%clk 0:00:50]} 27. Rxc5 {[%clk 0:01:12]}  Bxe5 {[%clk 0:00:49]} 28. Rxe5 {[%clk 0:01:06]}  Nd3 {[%clk 0:00:50]} 29. Bxd3 {[%clk 0:01:06]}  Rxd3 {[%clk 0:00:50]} 30. Re4 {[%clk 0:01:06]}  h5 {[%clk 0:00:47]} 31. Ke2 {[%clk 0:01:05]}  Rfd8 {[%clk 0:00:47]} 32. Bc1 {[%clk 0:01:03]}  R8d4 {[%clk 0:00:37]} 33. Rxd4 {[%clk 0:00:58]}  Rxd4 {[%clk 0:00:37]} 34. Be3 {[%clk 0:00:58]}  Rd8 {[%clk 0:00:34]} 35. Bc5 {[%clk 0:00:50]}  f5 {[%clk 0:00:30]} 36. a4 {[%clk 0:00:50]}  e5 {[%clk 0:00:31]} 37. b4 {[%clk 0:00:49]}  Kf7 {[%clk 0:00:31]} 38. a5 {[%clk 0:00:49]}  Ke6 {[%clk 0:00:32]} 39. a6 {[%clk 0:00:49]}  Kd5 {[%clk 0:00:32]} 40. a7 {[%clk 0:00:49]}  Kc6 {[%clk 0:00:28]} 41. f3 {[%clk 0:00:47]}  Kb7 {[%clk 0:00:24]} 42. g3 {[%clk 0:00:44]}  Rd5 {[%clk 0:00:19]} 43. Ke3 {[%clk 0:00:43]}  Rd1 {[%clk 0:00:18]} 44. h4 {[%clk 0:00:41]}  Rg1 {[%clk 0:00:16]} 45. Kf2 {[%clk 0:00:40]}  Rc1 {[%clk 0:00:16]} 46. Ke3 {[%clk 0:00:39]}  Rc4 {[%clk 0:00:16]} 47. Kd3 {[%clk 0:00:37]}  Rc1 {[%clk 0:00:17]} 48. Ke3 {[%clk 0:00:37]}  Rb1 {[%clk 0:00:15]} 49. Kd3 {[%clk 0:00:34]}  Rb3+ {[%clk 0:00:15]} 50. Ke2 {[%clk 0:00:34]}  e4 {[%clk 0:00:15]} 51. fxe4 {[%clk 0:00:32]}  fxe4 {[%clk 0:00:16]} 52. Kf2 {[%clk 0:00:32]}  Rf3+ {[%clk 0:00:16]} 53. Kg2 {[%clk 0:00:32]}  Rf5 {[%clk 0:00:17]} 54. Be3 {[%clk 0:00:32]}  Rf3 {[%clk 0:00:15]} 55. Bc5 {[%clk 0:00:33]}  Rf7 {[%clk 0:00:13]} 56. Be3 {[%clk 0:00:32]}  Rf5 {[%clk 0:00:11]} 57. Bc5 {[%clk 0:00:31]}  Rf3 {[%clk 0:00:11]} 58. Bd4 {[%clk 0:00:25]}  Rd3 {[%clk 0:00:10]} 59. Bc5 {[%clk 0:00:25]}  Rd2+ {[%clk 0:00:10]} 60. Kf1 {[%clk 0:00:25]}  Rc2 {[%clk 0:00:10]} 61. Be3 {[%clk 0:00:23]}  Rb2 {[%clk 0:00:09]} 62. Bc5 {[%clk 0:00:23]}  Ka8 {[%clk 0:00:10]} 63. Ke1 {[%clk 0:00:20]}  Rg2 {[%clk 0:00:09]} 64. Bf2 {[%clk 0:00:21]}  e3 {[%clk 0:00:09]} 65. Bxe3 {[%clk 0:00:21]}  Rxg3 {[%clk 0:00:10]} 66. Bc5 {[%clk 0:00:22]}  Rg4 {[%clk 0:00:10]} 67. Bf2 {[%clk 0:00:20]}  Rxb4 {[%clk 0:00:09]} 68. Ke2 {[%clk 0:00:21]}  Rg4 {[%clk 0:00:08]} 69. Kf3 {[%clk 0:00:21]}  Rb4 {[%clk 0:00:07]} 70. Ke3 {[%clk 0:00:19]}  Rxh4 {[%clk 0:00:07]} 71. Kd3 {[%clk 0:00:20]}  Rg4 {[%clk 0:00:07]} 72. Ke3 {[%clk 0:00:20]}  Rg8 {[%clk 0:00:07]} 73. Kf3 {[%clk 0:00:21]}  Rg4 {[%clk 0:00:07]} 74. Be3 {[%clk 0:00:20]}  Ra4 {[%clk 0:00:08]} 75. Bf2 {[%clk 0:00:21]}  h4 {[%clk 0:00:06]} 76. Kg2 {[%clk 0:00:21]}  Ra2 {[%clk 0:00:06]} 77. Kf3 {[%clk 0:00:21]}  h3 {[%clk 0:00:06]} 78. Bg3 {[%clk 0:00:19]}  h2 {[%clk 0:00:06]} 0-1


[Site "https://www.chess.com"]

[Event "Titled Tuesday Blitz July 05 Late 2022"]
[White "Holt, Conrad"]
[Black "Issani, Nameer"]
[WhiteFideId "2034387"]
[BlackFideId "2619130"]
[WhiteElo "2586"]
[BlackElo "2648"]
[Result "1-0"]
[Round "05"]
[TimeControl "180+1"]
[Date "2022.07.05"]
[WhiteClock "0:02:30"]
[BlackClock "0:00:55"]

1. d4 {[%clk 0:03:00]}  Nf6 {[%clk 0:02:56]} 2. c4 {[%clk 0:03:01]}  e6 {[%clk 0:02:50]} 3. Nc3 {[%clk 0:03:01]}  Bb4 {[%clk 0:02:41]} 4. Qc2 {[%clk 0:03:01]}  O-O {[%clk 0:02:40]} 5. e4 {[%clk 0:03:01]}  d6 {[%clk 0:02:40]} 6. a3 {[%clk 0:03:00]}  Bxc3+ {[%clk 0:02:39]} 7. bxc3 {[%clk 0:03:00]}  e5 {[%clk 0:02:39]} 8. Bd3 {[%clk 0:03:01]}  Nbd7 {[%clk 0:02:39]} 9. Ne2 {[%clk 0:03:01]}  Re8 {[%clk 0:02:39]} 10. O-O {[%clk 0:03:01]}  c6 {[%clk 0:02:38]} 11. f4 {[%clk 0:03:01]}  Qc7 {[%clk 0:02:38]} 12. Ng3 {[%clk 0:02:59]}  Nf8 {[%clk 0:02:24]} 13. fxe5 {[%clk 0:02:55]}  dxe5 {[%clk 0:02:24]} 14. Rxf6 {[%clk 0:02:55]}  gxf6 {[%clk 0:02:24]} 15. Qf2 {[%clk 0:02:54]}  Ng6 {[%clk 0:01:53]} 16. Nh5 {[%clk 0:02:51]}  Re6 {[%clk 0:01:52]} 17. Nxf6+ {[%clk 0:02:45]}  Kh8 {[%clk 0:01:50]} 18. d5 {[%clk 0:02:40]}  Re7 {[%clk 0:01:12]} 19. c5 {[%clk 0:02:37]}  Qd8 {[%clk 0:01:08]} 20. Bg5 {[%clk 0:02:33]}  Nf4 {[%clk 0:00:55]} 21. Qh4 {[%clk 0:02:30]} 1-0


[Site "https://www.chess.com"]

[Event "Titled Tuesday Blitz July 05 Late 2022"]
[White "Ibarra Jerez, Jose Carlos"]
[Black "Matinian, Nikita"]
[WhiteFideId "2226332"]
[BlackFideId "24129100"]
[WhiteElo "2628"]
[BlackElo "2422"]
[Result "1-0"]
[Round "05"]
[TimeControl "180+1"]
[Date "2022.07.05"]
[WhiteClock "0:00:07"]
[BlackClock "0:00:01"]

1. e4 {[%clk 0:03:00]}  e5 {[%clk 0:02:59]} 2. Nf3 {[%clk 0:03:00]}  Nc6 {[%clk 0:02:59]} 3. Bb5 {[%clk 0:03:00]}  a6 {[%clk 0:02:59]} 4. Bxc6 {[%clk 0:03:01]}  dxc6 {[%clk 0:03:00]} 5. O-O {[%clk 0:03:01]}  Bd6 {[%clk 0:02:56]} 6. d4 {[%clk 0:03:00]}  exd4 {[%clk 0:02:53]} 7. Qxd4 {[%clk 0:03:00]}  f6 {[%clk 0:02:51]} 8. Be3 {[%clk 0:03:00]}  Ne7 {[%clk 0:02:48]} 9. Nbd2 {[%clk 0:03:00]}  Be6 {[%clk 0:02:47]} 10. Qc3 {[%clk 0:02:58]}  Qd7 {[%clk 0:02:45]} 11. Nd4 {[%clk 0:02:52]}  O-O {[%clk 0:02:30]} 12. f4 {[%clk 0:02:49]}  Bf7 {[%clk 0:02:27]} 13. Rae1 {[%clk 0:02:47]}  Rad8 {[%clk 0:02:21]} 14. N2f3 {[%clk 0:02:20]}  c5 {[%clk 0:02:15]} 15. Nb3 {[%clk 0:02:19]}  c4 {[%clk 0:02:12]} 16. Nbd4 {[%clk 0:02:10]}  c5 {[%clk 0:02:03]} 17. Ne2 {[%clk 0:02:07]}  b5 {[%clk 0:01:58]} 18. Ng3 {[%clk 0:02:00]}  Qc6 {[%clk 0:01:45]} 19. Rd1 {[%clk 0:01:54]}  Bc7 {[%clk 0:01:16]} 20. Rxd8 {[%clk 0:01:50]}  Rxd8 {[%clk 0:01:16]} 21. Qe1 {[%clk 0:01:51]}  b4 {[%clk 0:01:07]} 22. Qf2 {[%clk 0:01:45]}  Bb6 {[%clk 0:01:01]} 23. f5 {[%clk 0:01:34]}  c3 {[%clk 0:01:00]} 24. b3 {[%clk 0:01:33]}  Rc8 {[%clk 0:00:23]} 25. e5 {[%clk 0:01:20]}  Nd5 {[%clk 0:00:22]} 26. e6 {[%clk 0:01:02]}  Be8 {[%clk 0:00:22]} 27. Kh1 {[%clk 0:00:59]}  Nxe3 {[%clk 0:00:22]} 28. Qxe3 {[%clk 0:00:59]}  c4 {[%clk 0:00:22]} 29. Qf4 {[%clk 0:00:45]}  cxb3 {[%clk 0:00:23]} 30. axb3 {[%clk 0:00:46]}  Qc5 {[%clk 0:00:20]} 31. Ne4 {[%clk 0:00:37]}  Qd5 {[%clk 0:00:16]} 32. Qg4 {[%clk 0:00:17]}  Bd8 {[%clk 0:00:14]} 33. h4 {[%clk 0:00:17]}  Be7 {[%clk 0:00:14]} 34. h5 {[%clk 0:00:14]}  h6 {[%clk 0:00:15]} 35. Nh4 {[%clk 0:00:14]}  Qb5 {[%clk 0:00:13]} 36. Rd1 {[%clk 0:00:13]}  Qe5 {[%clk 0:00:12]} 37. Nf3 {[%clk 0:00:08]}  Qc7 {[%clk 0:00:10]} 38. Nh4 {[%clk 0:00:08]}  Rd8 {[%clk 0:00:10]} 39. Rf1 {[%clk 0:00:08]}  Rd4 {[%clk 0:00:10]} 40. Ng6 {[%clk 0:00:06]}  Bd8 {[%clk 0:00:07]} 41. Re1 {[%clk 0:00:05]}  Qc6 {[%clk 0:00:06]} 42. Qe2 {[%clk 0:00:06]}  Bc7 {[%clk 0:00:06]} 43. Ne7+ {[%clk 0:00:06]}  Kh7 {[%clk 0:00:06]} 44. Nxc6 {[%clk 0:00:06]}  Bxc6 {[%clk 0:00:06]} 45. Qg4 {[%clk 0:00:07]}  Be5 {[%clk 0:00:02]} 46. Qg6+ {[%clk 0:00:07]}  Kh8 {[%clk 0:00:03]} 47. e7 {[%clk 0:00:07]}  Rxe4 {[%clk 0:00:01]} 48. e8=Q+ {[%clk 0:00:07]} 1-0


[Site "https://www.chess.com"]

[Event "Titled Tuesday Blitz July 05 Late 2022"]
[White "Kamsky, Gata"]
[Black "Lashkin, Jegor"]
[WhiteFideId "2000024"]
[BlackFideId "13907808"]
[WhiteElo "2645"]
[BlackElo "2368"]
[Result "1/2-1/2"]
[Round "05"]
[TimeControl "180+1"]
[Date "2022.07.05"]
[WhiteClock "0:00:16"]
[BlackClock "0:00:04"]

1. e4 {[%clk 0:03:00]}  c5 {[%clk 0:02:59]} 2. Nf3 {[%clk 0:02:58]}  d6 {[%clk 0:02:59]} 3. d4 {[%clk 0:02:57]}  cxd4 {[%clk 0:03:00]} 4. Nxd4 {[%clk 0:02:52]}  Nf6 {[%clk 0:03:00]} 5. Nc3 {[%clk 0:02:52]}  a6 {[%clk 0:03:00]} 6. a4 {[%clk 0:02:51]}  e5 {[%clk 0:03:00]} 7. Nf3 {[%clk 0:02:51]}  Be7 {[%clk 0:03:00]} 8. Bc4 {[%clk 0:02:48]}  O-O {[%clk 0:02:55]} 9. O-O {[%clk 0:02:48]}  Be6 {[%clk 0:02:54]} 10. Qe2 {[%clk 0:02:48]}  Qc7 {[%clk 0:02:46]} 11. Bb3 {[%clk 0:02:47]}  h6 {[%clk 0:02:14]} 12. Rd1 {[%clk 0:02:43]}  Nbd7 {[%clk 0:02:10]} 13. Be3 {[%clk 0:02:41]}  Rac8 {[%clk 0:02:05]} 14. h3 {[%clk 0:02:39]}  Nc5 {[%clk 0:02:00]} 15. Bxc5 {[%clk 0:02:37]}  Qxc5 {[%clk 0:02:01]} 16. Rd3 {[%clk 0:02:27]}  Qb4 {[%clk 0:01:56]} 17. Nd2 {[%clk 0:02:15]}  Rc5 {[%clk 0:01:39]} 18. Rd1 {[%clk 0:01:57]}  Rfc8 {[%clk 0:01:35]} 19. Na2 {[%clk 0:01:28]}  Qb6 {[%clk 0:01:24]} 20. Nc3 {[%clk 0:01:27]}  Qc6 {[%clk 0:01:08]} 21. Nf1 {[%clk 0:01:24]}  Bf8 {[%clk 0:01:02]} 22. Qf3 {[%clk 0:01:23]}  Qb6 {[%clk 0:00:58]} 23. Ne3 {[%clk 0:01:14]}  Qb4 {[%clk 0:00:43]} 24. Ncd5 {[%clk 0:01:10]}  Nxd5 {[%clk 0:00:38]} 25. Nxd5 {[%clk 0:01:09]}  Qa5 {[%clk 0:00:33]} 26. h4 {[%clk 0:01:06]}  Qd8 {[%clk 0:00:33]} 27. g3 {[%clk 0:01:06]}  b5 {[%clk 0:00:24]} 28. axb5 {[%clk 0:01:05]}  Rxb5 {[%clk 0:00:23]} 29. Ra1 {[%clk 0:00:55]}  a5 {[%clk 0:00:23]} 30. Kg2 {[%clk 0:00:52]}  Rbc5 {[%clk 0:00:20]} 31. Ne3 {[%clk 0:00:48]}  Rb8 {[%clk 0:00:20]} 32. Bxe6 {[%clk 0:00:47]}  fxe6 {[%clk 0:00:21]} 33. b3 {[%clk 0:00:47]}  Qc7 {[%clk 0:00:16]} 34. Qg4 {[%clk 0:00:46]}  Qf7 {[%clk 0:00:15]} 35. Nc4 {[%clk 0:00:42]}  Ra8 {[%clk 0:00:10]} 36. Ra4 {[%clk 0:00:37]}  Qf6 {[%clk 0:00:10]} 37. Qf3 {[%clk 0:00:32]}  Qe7 {[%clk 0:00:09]} 38. Kh2 {[%clk 0:00:30]}  Qc7 {[%clk 0:00:08]} 39. Rd1 {[%clk 0:00:29]}  Rd8 {[%clk 0:00:07]} 40. Ne3 {[%clk 0:00:24]}  Qc6 {[%clk 0:00:06]} 41. Qg4 {[%clk 0:00:22]}  d5 {[%clk 0:00:06]} 42. Rd3 {[%clk 0:00:19]}  Rd7 {[%clk 0:00:05]} 43. Kg2 {[%clk 0:00:18]}  Rf7 {[%clk 0:00:04]} 44. Rd2 {[%clk 0:00:16]}  Rf6 {[%clk 0:00:03]} 45. Kh2 {[%clk 0:00:15]}  Rf7 {[%clk 0:00:03]} 46. Kg2 {[%clk 0:00:15]}  Rf6 {[%clk 0:00:04]} 47. Kh2 {[%clk 0:00:16]}  Rf7 {[%clk 0:00:04]} 48. Kg2 {[%clk 0:00:16]} 1/2-1/2


[Site "https://www.chess.com"]

[Event "Titled Tuesday Blitz July 05 Late 2022"]
[White "Keller, Peter"]
[Black "Romanchuk, Viktor"]
[WhiteFideId "1272105"]
[BlackFideId "14109271"]
[WhiteElo "2275"]
[BlackElo "2242"]
[Result "1/2-1/2"]
[Round "05"]
[TimeControl "180+1"]
[Date "2022.07.06"]
[WhiteClock "0:00:13"]
[BlackClock "0:00:12"]

1. d4 {[%clk 0:03:00]}  d5 {[%clk 0:02:59]} 2. Bf4 {[%clk 0:02:59]}  Nf6 {[%clk 0:02:58]} 3. e3 {[%clk 0:02:59]}  c5 {[%clk 0:02:58]} 4. c3 {[%clk 0:02:59]}  Nc6 {[%clk 0:02:58]} 5. Nd2 {[%clk 0:02:58]}  cxd4 {[%clk 0:02:58]} 6. exd4 {[%clk 0:02:58]}  Bf5 {[%clk 0:02:58]} 7. Ngf3 {[%clk 0:02:55]}  e6 {[%clk 0:02:58]} 8. Be2 {[%clk 0:02:53]}  Be7 {[%clk 0:02:58]} 9. O-O {[%clk 0:02:50]}  O-O {[%clk 0:02:58]} 10. Nh4 {[%clk 0:02:49]}  Be4 {[%clk 0:02:54]} 11. f3 {[%clk 0:02:12]}  Bg6 {[%clk 0:02:46]} 12. Nxg6 {[%clk 0:02:12]}  hxg6 {[%clk 0:02:47]} 13. Re1 {[%clk 0:02:00]}  Nh5 {[%clk 0:02:39]} 14. Be3 {[%clk 0:01:55]}  Bg5 {[%clk 0:02:35]} 15. Bf2 {[%clk 0:01:53]}  Qc7 {[%clk 0:02:24]} 16. Bf1 {[%clk 0:01:47]}  Bf4 {[%clk 0:02:11]} 17. g3 {[%clk 0:01:44]}  Bd6 {[%clk 0:02:12]} 18. Bg2 {[%clk 0:01:29]}  Rab8 {[%clk 0:02:10]} 19. c4 {[%clk 0:01:21]}  dxc4 {[%clk 0:02:06]} 20. Nxc4 {[%clk 0:01:22]}  Bb4 {[%clk 0:02:03]} 21. Re2 {[%clk 0:01:19]}  Nf6 {[%clk 0:02:01]} 22. a3 {[%clk 0:01:17]}  Be7 {[%clk 0:01:58]} 23. Rc1 {[%clk 0:01:16]}  Rbc8 {[%clk 0:01:50]} 24. Ne5 {[%clk 0:01:11]}  Qd6 {[%clk 0:01:49]} 25. Nc4 {[%clk 0:01:01]}  Qb8 {[%clk 0:01:42]} 26. b4 {[%clk 0:00:57]}  a6 {[%clk 0:01:11]} 27. Kh1 {[%clk 0:00:57]}  Rfd8 {[%clk 0:01:01]} 28. f4 {[%clk 0:00:54]}  Nd5 {[%clk 0:00:55]} 29. Rec2 {[%clk 0:00:50]}  Na7 {[%clk 0:00:43]} 30. Ne3 {[%clk 0:00:29]}  Rxc2 {[%clk 0:00:41]} 31. Rxc2 {[%clk 0:00:30]}  Nxe3 {[%clk 0:00:35]} 32. Bxe3 {[%clk 0:00:31]}  Nb5 {[%clk 0:00:35]} 33. a4 {[%clk 0:00:23]}  Nc7 {[%clk 0:00:34]} 34. Bf2 {[%clk 0:00:10]}  Bxb4 {[%clk 0:00:32]} 35. Qb1 {[%clk 0:00:11]}  a5 {[%clk 0:00:30]} 36. Qf1 {[%clk 0:00:11]}  Nd5 {[%clk 0:00:28]} 37. Qb5 {[%clk 0:00:11]}  Rc8 {[%clk 0:00:27]} 38. Rxc8+ {[%clk 0:00:10]}  Qxc8 {[%clk 0:00:27]} 39. Bxd5 {[%clk 0:00:10]}  exd5 {[%clk 0:00:25]} 40. Qxd5 {[%clk 0:00:11]}  Qc6 {[%clk 0:00:23]} 41. Qxc6 {[%clk 0:00:11]}  bxc6 {[%clk 0:00:24]} 42. Kg2 {[%clk 0:00:12]}  f5 {[%clk 0:00:24]} 43. Kf3 {[%clk 0:00:11]}  Kf7 {[%clk 0:00:24]} 44. h3 {[%clk 0:00:12]}  Ke6 {[%clk 0:00:24]} 45. Ke2 {[%clk 0:00:12]}  Kd5 {[%clk 0:00:23]} 46. Kd3 {[%clk 0:00:12]}  Be7 {[%clk 0:00:19]} 47. g4 {[%clk 0:00:12]}  Bb4 {[%clk 0:00:16]} 48. Be3 {[%clk 0:00:12]}  Bd6 {[%clk 0:00:15]} 49. Bd2 {[%clk 0:00:12]}  Bc7 {[%clk 0:00:15]} 50. Be3 {[%clk 0:00:13]}  Bb6 {[%clk 0:00:14]} 51. Bf2 {[%clk 0:00:13]}  Ba7 {[%clk 0:00:14]} 52. Be3 {[%clk 0:00:14]}  Bb8 {[%clk 0:00:14]} 53. Bd2 {[%clk 0:00:12]}  Bc7 {[%clk 0:00:14]} 54. Be3 {[%clk 0:00:12]}  Bb6 {[%clk 0:00:13]} 55. Bf2 {[%clk 0:00:13]}  Ba7 {[%clk 0:00:12]} 56. Be3 {[%clk 0:00:13]}  Bb6 {[%clk 0:00:12]} 1/2-1/2


[Site "https://www.chess.com"]

[Event "Titled Tuesday Blitz July 05 Late 2022"]
[White "Kosteniuk, Alexandra"]
[Black "Martins, Bruno Andre Leite"]
[WhiteFideId "4128125"]
[BlackFideId "1942255"]
[WhiteElo "2469"]
[BlackElo "2282"]
[Result "1-0"]
[Round "05"]
[TimeControl "180+1"]
[Date "2022.07.06"]
[WhiteClock "0:00:39"]
[BlackClock "0:00:01"]

1. e4 {[%clk 0:03:00]}  e5 {[%clk 0:02:58]} 2. Nf3 {[%clk 0:03:00]}  d6 {[%clk 0:02:57]} 3. d4 {[%clk 0:03:00]}  exd4 {[%clk 0:02:58]} 4. Nxd4 {[%clk 0:03:00]}  Nf6 {[%clk 0:02:59]} 5. Nc3 {[%clk 0:03:00]}  Be7 {[%clk 0:02:59]} 6. g3 {[%clk 0:02:59]}  d5 {[%clk 0:02:59]} 7. e5 {[%clk 0:02:52]}  Ng4 {[%clk 0:02:59]} 8. Bg2 {[%clk 0:02:51]}  O-O {[%clk 0:02:53]} 9. O-O {[%clk 0:02:48]}  Nxe5 {[%clk 0:02:41]} 10. Nxd5 {[%clk 0:02:47]}  Bd6 {[%clk 0:02:37]} 11. Nb5 {[%clk 0:02:41]}  c6 {[%clk 0:01:33]} 12. Nf6+ {[%clk 0:02:11]}  Qxf6 {[%clk 0:01:32]} 13. Nxd6 {[%clk 0:02:12]}  Rd8 {[%clk 0:01:27]} 14. Ne4 {[%clk 0:02:12]}  Qe7 {[%clk 0:01:27]} 15. Qe2 {[%clk 0:02:01]}  Bg4 {[%clk 0:01:18]} 16. f3 {[%clk 0:02:00]}  Be6 {[%clk 0:01:18]} 17. Re1 {[%clk 0:01:55]}  Nbd7 {[%clk 0:01:13]} 18. Ng5 {[%clk 0:01:48]}  Bc4 {[%clk 0:01:10]} 19. Qxc4 {[%clk 0:01:42]}  Qxg5 {[%clk 0:00:39]} 20. Bxg5 {[%clk 0:01:41]}  Nxc4 {[%clk 0:00:39]} 21. Bxd8 {[%clk 0:01:41]}  Rxd8 {[%clk 0:00:39]} 22. Rad1 {[%clk 0:01:42]}  Kf8 {[%clk 0:00:31]} 23. Bh3 {[%clk 0:01:41]}  Ncb6 {[%clk 0:00:29]} 24. c4 {[%clk 0:01:39]}  Re8 {[%clk 0:00:23]} 25. Rxe8+ {[%clk 0:01:34]}  Kxe8 {[%clk 0:00:24]} 26. b3 {[%clk 0:01:35]}  a5 {[%clk 0:00:22]} 27. Kf2 {[%clk 0:01:34]}  Nc5 {[%clk 0:00:22]} 28. Bf5 {[%clk 0:01:28]}  g6 {[%clk 0:00:21]} 29. Bc2 {[%clk 0:01:28]}  Ke7 {[%clk 0:00:21]} 30. h4 {[%clk 0:01:28]}  Na6 {[%clk 0:00:20]} 31. g4 {[%clk 0:01:25]}  Nd7 {[%clk 0:00:20]} 32. h5 {[%clk 0:01:24]}  Nf6 {[%clk 0:00:19]} 33. h6 {[%clk 0:01:21]}  Nd7 {[%clk 0:00:18]} 34. f4 {[%clk 0:01:19]}  Nac5 {[%clk 0:00:17]} 35. Kf3 {[%clk 0:01:17]}  Ne6 {[%clk 0:00:16]} 36. f5 {[%clk 0:01:16]}  Nec5 {[%clk 0:00:14]} 37. g5 {[%clk 0:01:14]}  Nf8 {[%clk 0:00:07]} 38. a3 {[%clk 0:01:10]}  gxf5 {[%clk 0:00:06]} 39. Re1+ {[%clk 0:00:59]}  Kd8 {[%clk 0:00:02]} 40. Bxf5 {[%clk 0:00:52]}  Nxb3 {[%clk 0:00:02]} 41. Kf4 {[%clk 0:00:51]}  Nd4 {[%clk 0:00:02]} 42. c5 {[%clk 0:00:46]}  Nb3 {[%clk 0:00:02]} 43. Ke5 {[%clk 0:00:40]}  Nxc5 {[%clk 0:00:02]} 44. Kf6 {[%clk 0:00:41]}  Nce6 {[%clk 0:00:02]} 45. Kxf7 {[%clk 0:00:39]}  Nxg5+ {[%clk 0:00:01]} 46. Kxf8 {[%clk 0:00:39]} 1-0


[Site "https://www.chess.com"]

[Event "Titled Tuesday Blitz July 05 Late 2022"]
[White "Lobanov, Sergei"]
[Black "Wieczorek, Oskar"]
[WhiteFideId "24183750"]
[BlackFideId "1133950"]
[WhiteElo "2524"]
[BlackElo "2330"]
[Result "0-1"]
[Round "05"]
[TimeControl "180+1"]
[Date "2022.07.05"]
[WhiteClock "0:00:02"]
[BlackClock "0:00:01"]

1. e4 {[%clk 0:03:00]}  c5 {[%clk 0:03:00]} 2. Nf3 {[%clk 0:03:00]}  e6 {[%clk 0:03:00]} 3. d4 {[%clk 0:03:00]}  cxd4 {[%clk 0:03:00]} 4. Nxd4 {[%clk 0:03:01]}  Nf6 {[%clk 0:03:01]} 5. Nc3 {[%clk 0:02:59]}  d6 {[%clk 0:03:00]} 6. g4 {[%clk 0:02:56]}  e5 {[%clk 0:03:01]} 7. Nf5 {[%clk 0:02:55]}  h5 {[%clk 0:03:01]} 8. Bg5 {[%clk 0:02:48]}  hxg4 {[%clk 0:02:55]} 9. Bxf6 {[%clk 0:02:40]}  Qxf6 {[%clk 0:02:43]} 10. Nd5 {[%clk 0:02:40]}  Qd8 {[%clk 0:02:42]} 11. Bc4 {[%clk 0:02:28]}  Nc6 {[%clk 0:02:26]} 12. Qd3 {[%clk 0:02:04]}  g6 {[%clk 0:01:58]} 13. Nfe3 {[%clk 0:02:03]}  Be6 {[%clk 0:01:59]} 14. O-O-O {[%clk 0:01:59]}  a6 {[%clk 0:01:53]} 15. Kb1 {[%clk 0:01:52]}  b5 {[%clk 0:01:49]} 16. Bb3 {[%clk 0:01:47]}  Nd4 {[%clk 0:01:49]} 17. a3 {[%clk 0:01:23]}  Bh6 {[%clk 0:01:33]} 18. Ba2 {[%clk 0:01:23]}  Kf8 {[%clk 0:01:28]} 19. c3 {[%clk 0:01:16]}  Nf3 {[%clk 0:01:24]} 20. Nb4 {[%clk 0:01:03]}  Bxa2+ {[%clk 0:01:09]} 21. Kxa2 {[%clk 0:01:03]}  Bxe3 {[%clk 0:01:07]} 22. Qxe3 {[%clk 0:01:04]}  Kg7 {[%clk 0:00:48]} 23. h3 {[%clk 0:01:04]}  Qg5 {[%clk 0:00:44]} 24. Qd3 {[%clk 0:01:04]}  a5 {[%clk 0:00:35]} 25. Nc6 {[%clk 0:01:00]}  Qf6 {[%clk 0:00:24]} 26. hxg4 {[%clk 0:00:46]}  Qe6+ {[%clk 0:00:22]} 27. Ka1 {[%clk 0:00:38]}  Qxg4 {[%clk 0:00:13]} 28. Rhf1 {[%clk 0:00:18]}  b4 {[%clk 0:00:11]} 29. cxb4 {[%clk 0:00:18]}  axb4 {[%clk 0:00:12]} 30. Nxb4 {[%clk 0:00:19]}  Nd4 {[%clk 0:00:12]} 31. f3 {[%clk 0:00:14]}  Qe6 {[%clk 0:00:12]} 32. Nd5 {[%clk 0:00:10]}  Rhb8 {[%clk 0:00:12]} 33. Qc3 {[%clk 0:00:07]}  Rb3 {[%clk 0:00:11]} 34. Qc4 {[%clk 0:00:06]}  Rab8 {[%clk 0:00:04]} 35. Rf2 {[%clk 0:00:06]}  Qd7 {[%clk 0:00:04]} 36. f4 {[%clk 0:00:06]}  Qa7 {[%clk 0:00:04]} 37. fxe5 {[%clk 0:00:03]}  Rxa3+ {[%clk 0:00:05]} 38. bxa3 {[%clk 0:00:03]}  Qxa3+ {[%clk 0:00:05]} 39. Ra2 {[%clk 0:00:04]}  Nb3+ {[%clk 0:00:06]} 40. Kb1 {[%clk 0:00:01]}  Nc1+ {[%clk 0:00:06]} 41. Ka1 {[%clk 0:00:01]}  Nxa2 {[%clk 0:00:04]} 42. Qxa2 {[%clk 0:00:02]}  Qc5 {[%clk 0:00:01]} 43. Rb1 {[%clk 0:00:02]}  Rh8 {[%clk 0:00:01]} 44. exd6 {[%clk 0:00:01]}  Qd4+ {[%clk 0:00:01]} 45. Qb2 {[%clk 0:00:02]}  Ra8# {[%clk 0:00:01]} 0-1


[Site "https://www.chess.com"]